[Event "Kadett-SM 2025"]
[Site "Uppsala, Sweden"]
[Date "2025.07.01"]
[Round "2.1"]
[White "Ljungros, Lo"]
[Black "Stedman, Theodor"]
[Result "1-0"]
[TimeControl "90 min for 40 move + 30 min with an increment of 30 sec starting move 1"]
[WhiteFideId "1760114"]
[BlackFideId "1756230"]
[WhiteElo "2051"]
[BlackElo "1873"]

1. c4 {[%clk 01:30:46]} {[%emt 00:00:14]} c5 {[%clk 01:30:39]} {[%emt
00:00:21]} 2. Nc3 {[%clk 01:31:06]} {[%emt 00:00:10]} Nc6 {[%clk 01:31:04]}
{[%emt 00:00:05]} 3. g3 {[%clk 01:31:29]} {[%emt 00:00:06]} g6 {[%clk
01:31:07]} {[%emt 00:00:28]} 4. Bg2 {[%clk 01:31:50]} {[%emt 00:00:08]} Bg7
{[%clk 01:30:48]} {[%emt 00:00:50]} 5. e4 {[%clk 01:32:09]} {[%emt 00:00:11]}
d6 {[%clk 01:29:32]} {[%emt 00:01:46]} 6. Nge2 {[%clk 01:32:04]} {[%emt
00:00:33]} e5 {[%clk 01:28:33]} {[%emt 00:01:31]} 7. O-O {[%clk 01:31:25]}
{[%emt 00:01:08]} Nge7 {[%clk 01:28:57]} {[%emt 00:00:06]} 8. d3 {[%clk
01:31:34]} {[%emt 00:00:21]} Nd4 {[%clk 01:28:17]} {[%emt 00:01:11]} 9. a3
{[%clk 01:30:29]} {[%emt 00:01:34]} Nec6 {[%clk 01:27:23]} {[%emt 00:01:25]} 10.
Rb1 {[%clk 01:30:06]} {[%emt 00:00:52]} a5 {[%clk 01:27:38]} {[%emt 00:00:16]}
11. h3 {[%clk 01:30:02]} {[%emt 00:00:33]} O-O {[%clk 01:25:57]} {[%emt
00:02:08]} 12. f4 {[%clk 01:29:15]} {[%emt 00:01:19]} f5 {[%clk 01:21:34]}
{[%emt 00:04:54]} 13. Nd5 {[%clk 01:24:41]} {[%emt 00:05:04]} Nxe2+ {[%clk
01:08:33]} {[%emt 00:13:32]} 14. Qxe2 {[%clk 01:24:27]} {[%emt 00:00:42]} Nd4
{[%clk 01:08:08]} {[%emt 00:00:57]} 15. Qd1 {[%clk 01:21:36]} {[%emt 00:03:18]}
Be6 {[%clk 00:55:12]} {[%emt 00:13:29]} 16. b4 {[%clk 01:18:30]} {[%emt
00:03:35]} Bxd5 {[%clk 00:40:44]} {[%emt 00:14:59]} 17. exd5 {[%clk 01:17:37]}
{[%emt 00:01:22]} cxb4 {[%clk 00:40:32]} {[%emt 00:00:42]} 18. axb4 {[%clk
01:17:50]} {[%emt 00:00:17]} Qb6 {[%clk 00:40:40]} {[%emt 00:00:23]} 19. Bd2
{[%clk 01:08:47]} {[%emt 00:09:33]} axb4 {[%clk 00:31:36]} {[%emt 00:09:33]} 20.
Rxb4 {[%clk 01:08:36]} {[%emt 00:00:40]} Qc5 {[%clk 00:29:29]} {[%emt
00:02:38]} 21. Rxb7 {[%clk 01:00:09]} {[%emt 00:08:57]} Ra1 {[%clk 00:27:57]}
{[%emt 00:02:03]} 22. Qxa1 {[%clk 00:57:36]} {[%emt 00:03:02]} Nf3+ {[%clk
00:17:52]} {[%emt 00:10:36]} 23. Kh1 {[%clk 00:56:50]} {[%emt 00:01:15]} Nxd2
{[%clk 00:17:38]} {[%emt 00:00:45]} 24. Rd1 {[%clk 00:56:44]} {[%emt 00:00:34]}
Qe3 {[%clk 00:16:01]} {[%emt 00:02:08]} 25. Qc1 {[%clk 00:55:49]} {[%emt
00:01:25]} Qxg3 {[%clk 00:12:01]} {[%emt 00:04:30]} 26. Qxd2 {[%clk 00:56:01]}
{[%emt 00:00:16]} Bh6 {[%clk 00:11:28]} {[%emt 00:01:05]} 27. Qe1 {[%clk
00:53:31]} {[%emt 00:02:59]} Qxf4 {[%clk 00:11:54]} {[%emt 00:00:05]} 28. Qa5
{[%clk 00:53:30]} {[%emt 00:00:31]} Bg7 {[%clk 00:10:19]} {[%emt 00:02:06]} 29.
Qc7 {[%clk 00:53:10]} {[%emt 00:00:50]} Qh6 {[%clk 00:10:46]} {[%emt 00:00:03]}
30. Rb8 {[%clk 00:44:47]} {[%emt 00:08:53]} e4 {[%clk 00:08:09]} {[%emt
00:03:07]} 31. Rxf8+ {[%clk 00:44:44]} {[%emt 00:00:33]} Bxf8 {[%clk 00:08:32]}
{[%emt 00:00:07]} 32. dxe4 {[%clk 00:44:53]} {[%emt 00:00:20]} f4 {[%clk
00:07:49]} {[%emt 00:01:13]} 33. Rf1 {[%clk 00:44:35]} {[%emt 00:00:48]} g5
{[%clk 00:08:01]} {[%emt 00:00:18]} 34. Qc8 {[%clk 00:43:58]} {[%emt 00:01:07]}
Qg7 {[%clk 00:06:59]} {[%emt 00:01:33]} 35. c5 {[%clk 00:42:16]} {[%emt
00:02:11]} dxc5 {[%clk 00:05:02]} {[%emt 00:02:27]} 36. Qe6+ {[%clk 00:41:53]}
{[%emt 00:00:53]} Kh8 {[%clk 00:04:34]} {[%emt 00:00:58]} 37. d6 {[%clk
00:41:08]} {[%emt 00:01:15]} g4 {[%clk 00:03:55]} {[%emt 00:01:09]} 38. Qxg4
{[%clk 00:40:51]} {[%emt 00:00:47]} 1-0

[Event "Kadett-SM 2025"]
[Site "Uppsala, Sweden"]
[Date "2025.07.01"]
[Round "2.2"]
[White "Zheng, Chale"]
[Black "Prabu, Dananjey"]
[Result "0-1"]
[TimeControl "90 min for 40 move + 30 min with an increment of 30 sec starting move 1"]
[WhiteFideId "1774425"]
[BlackFideId "25744992"]
[WhiteElo "1881"]
[BlackElo "2047"]

1. e4 {[%clk 01:30:58]} {[%emt 00:00:02]} e5 {[%clk 01:30:41]} {[%emt
00:00:19]} 2. Nf3 {[%clk 01:31:19]} {[%emt 00:00:09]} Nc6 {[%clk 01:31:06]}
{[%emt 00:00:06]} 3. Bc4 {[%clk 01:31:34]} {[%emt 00:00:14]} Bc5 {[%clk
01:31:30]} {[%emt 00:00:06]} 4. d3 {[%clk 01:30:24]} {[%emt 00:01:40]} h6
{[%clk 01:31:46]} {[%emt 00:00:14]} 5. Nc3 {[%clk 01:29:22]} {[%emt 00:01:32]}
Nf6 {[%clk 01:31:52]} {[%emt 00:00:24]} 6. h3 {[%clk 01:28:48]} {[%emt
00:01:04]} d6 {[%clk 01:32:16]} {[%emt 00:00:06]} 7. Na4 {[%clk 01:29:09]}
{[%emt 00:00:09]} Bb6 {[%clk 01:30:53]} {[%emt 00:01:54]} 8. c3 {[%clk
01:25:03]} {[%emt 00:04:36]} Na5 {[%clk 01:22:17]} {[%emt 00:09:05]} 9. Nxb6
{[%clk 01:20:32]} {[%emt 00:05:02]} axb6 {[%clk 01:22:39]} {[%emt 00:00:08]} 10.
Bb5+ {[%clk 01:20:36]} {[%emt 00:00:25]} c6 {[%clk 01:22:49]} {[%emt 00:00:20]}
11. Ba4 {[%clk 01:20:38]} {[%emt 00:00:27]} b5 {[%clk 01:23:12]} {[%emt
00:00:07]} 12. Bc2 {[%clk 01:20:28]} {[%emt 00:00:37]} c5 {[%clk 01:23:10]}
{[%emt 00:00:36]} 13. O-O {[%clk 01:18:23]} {[%emt 00:02:34]} Nc6 {[%clk
00:59:40]} {[%emt 00:24:01]} 14. d4 {[%clk 01:10:11]} {[%emt 00:08:41]} Qe7
{[%clk 00:58:14]} {[%emt 00:01:57]} 15. Re1 {[%clk 00:56:17]} {[%emt 00:14:24]}
g5 {[%clk 00:49:55]} {[%emt 00:08:48]} 16. Be3 {[%clk 00:30:21]} {[%emt
00:26:26]} g4 {[%clk 00:35:47]} {[%emt 00:14:38]} 17. hxg4 {[%clk 00:19:29]}
{[%emt 00:11:22]} Bxg4 {[%clk 00:31:12]} {[%emt 00:05:05]} 18. Qe2 {[%clk
00:16:04]} {[%emt 00:03:55]} cxd4 {[%clk 00:03:09]} {[%emt 00:28:34]} 19. cxd4
{[%clk 00:16:16]} {[%emt 00:00:17]} Bxf3 {[%clk 00:03:06]} {[%emt 00:00:33]} 20.
Qxf3 {[%clk 00:16:09]} {[%emt 00:00:37]} Nxd4 {[%clk 00:00:56]} {[%emt
00:02:40]} 21. Bxd4 {[%clk 00:16:25]} {[%emt 00:00:14]} exd4 {[%clk 00:01:21]}
{[%emt 00:00:04]} 22. Qf5 {[%clk 00:14:18]} {[%emt 00:02:36]} Qe5 {[%clk
00:01:23]} {[%emt 00:00:30]} 23. Qh3 {[%clk 00:13:44]} {[%emt 00:01:03]} Ke7
{[%clk 00:00:56]} {[%emt 00:00:58]} 24. Rac1 {[%clk 00:10:54]} {[%emt
00:03:21]} Rac8 {[%clk 00:00:55]} {[%emt 00:00:30]} 25. Bb3 {[%clk 00:10:01]}
{[%emt 00:01:23]} Rc6 {[%clk 00:00:39]} {[%emt 00:00:45]} 26. a4 {[%clk
00:06:21]} {[%emt 00:04:12]} Rhc8 {[%clk 00:00:38]} {[%emt 00:00:30]} 27. Qxc8
{[%clk 00:06:25]} {[%emt 00:00:26]} Rxc8 {[%clk 00:01:05]} {[%emt 00:00:04]} 28.
Rxc8 {[%clk 00:06:54]} d3 {[%clk 00:00:39]} {[%emt 00:00:55]} 29. Rc7+ {[%clk
00:06:12]} {[%emt 00:01:11]} Kd8 {[%clk 00:00:34]} {[%emt 00:00:36]} 30. Rc3
{[%clk 00:04:57]} {[%emt 00:01:45]} Ng4 {[%clk 00:00:34]} {[%emt 00:00:29]} 31.
Rxd3 {[%clk 00:03:16]} {[%emt 00:02:12]} Qh2+ {[%clk 00:01:02]} {[%emt
00:00:03]} 32. Kf1 {[%clk 00:03:44]} {[%emt 00:00:02]} Qh1+ {[%clk 00:01:25]}
{[%emt 00:00:07]} 33. Ke2 {[%clk 00:03:53]} {[%emt 00:00:20]} Qxg2 {[%clk
00:01:52]} {[%emt 00:00:02]} 34. Rf3 {[%clk 00:01:24]} {[%emt 00:03:00]} Ne5
{[%clk 00:02:18]} {[%emt 00:00:03]} 35. Re3 {[%clk 00:00:49]} {[%emt 00:01:06]}
bxa4 {[%clk 00:02:44]} {[%emt 00:00:04]} 36. Bxa4 {[%clk 00:01:03]} {[%emt
00:00:17]} Qg4+ {[%clk 00:02:53]} {[%emt 00:00:19]} 37. f3 {[%clk 00:00:47]}
{[%emt 00:00:47]} Qg2+ {[%clk 00:02:56]} {[%emt 00:00:25]} 38. Kd1 {[%clk
00:01:13]} {[%emt 00:00:05]} Nc4 {[%clk 00:03:15]} {[%emt 00:00:10]} 39. R3e2
{[%clk 00:00:56]} {[%emt 00:00:49]} Qxf3 {[%clk 00:02:06]} {[%emt 00:01:38]} 40.
Kc2 {[%clk 00:00:58]} {[%emt 00:00:28]} Qf6 {[%clk 00:01:31]} {[%emt 00:01:04]}
41. e5 {[%clk 00:00:43]} {[%emt 00:00:47]} Qf5+ {[%clk 00:01:43]} {[%emt
00:00:18]} 42. Kb3 {[%clk 00:00:35]} {[%emt 00:00:38]} Nxe5 {[%clk 00:01:20]}
{[%emt 00:00:53]} 43. Ka2 {[%clk 00:00:36]} {[%emt 00:00:29]} Qd3 {[%clk
00:28:31]} {[%emt 00:03:18]} 44. Re3 {[%clk 00:26:08]} {[%emt 00:04:58]} Qd4
{[%clk 00:25:01]} {[%emt 00:03:59]} 45. Re4 {[%clk 00:24:26]} {[%emt 00:02:14]}
Qd5+ {[%clk 00:25:21]} {[%emt 00:00:10]} 46. Bb3 {[%clk 00:21:32]} {[%emt
00:03:24]} Qa5+ {[%clk 00:25:34]} {[%emt 00:00:17]} 47. Kb1 {[%clk 00:21:45]}
{[%emt 00:00:17]} f5 {[%clk 00:25:26]} {[%emt 00:00:37]} 48. R4e2 {[%clk
00:19:55]} {[%emt 00:02:18]} Qb5 {[%clk 00:24:02]} {[%emt 00:01:55]} 49. Bc2
{[%clk 00:04:27]} {[%emt 00:15:59]} f4 {[%clk 00:21:49]} {[%emt 00:02:42]} 50.
Rf2 {[%clk 00:03:27]} {[%emt 00:01:29]} Qb4 {[%clk 00:21:39]} {[%emt 00:00:42]}
51. Re4 {[%clk 00:03:01]} {[%emt 00:00:54]} Nc4 {[%clk 00:21:46]} {[%emt
00:00:25]} 52. Kc1 {[%clk 00:00:48]} {[%emt 00:02:44]} Qxb2+ {[%clk 00:21:50]}
{[%emt 00:00:26]} 53. Kd1 {[%clk 00:01:05]} {[%emt 00:00:12]} Ne3+ {[%clk
00:21:44]} {[%emt 00:00:37]} 54. Ke2 {[%clk 00:00:39]} {[%emt 00:00:55]} Qxc2+
{[%clk 00:21:54]} {[%emt 00:00:21]} 55. Kf3 {[%clk 00:01:04]} {[%emt 00:00:05]}
Qd3 {[%clk 00:21:56]} {[%emt 00:00:27]} 56. Re2 {[%clk 00:00:32]} {[%emt
00:01:03]} Qd1 {[%clk 00:20:17]} {[%emt 00:02:08]} 57. Kxf4 {[%clk 00:00:32]}
{[%emt 00:00:31]} Qxe2 {[%clk 00:20:39]} {[%emt 00:00:08]} 0-1

[Event "Kadett-SM 2025"]
[Site "Uppsala, Sweden"]
[Date "2025.07.01"]
[Round "2.3"]
[White "Nodtveidt, Svante"]
[Black "Bergman, Axel"]
[Result "1-0"]
[TimeControl "90 min for 40 move + 30 min with an increment of 30 sec starting move 1"]
[WhiteFideId "1774450"]
[BlackFideId "1772694"]
[WhiteElo "1838"]
[BlackElo "2034"]

1. e4 {[%clk 01:30:56]} {[%emt 00:00:03]} e6 {[%clk 01:29:23]} {[%emt
00:01:39]} 2. d4 {[%clk 01:31:20]} {[%emt 00:00:06]} d5 {[%clk 01:29:47]}
{[%emt 00:00:06]} 3. Nd2 {[%clk 01:31:44]} {[%emt 00:00:05]} dxe4 {[%clk
01:29:49]} {[%emt 00:00:28]} 4. Nxe4 {[%clk 01:32:07]} {[%emt 00:00:07]} Nd7
{[%clk 01:30:14]} {[%emt 00:00:05]} 5. Nf3 {[%clk 01:32:26]} {[%emt 00:00:10]}
Ngf6 {[%clk 01:30:35]} {[%emt 00:00:10]} 6. Nxf6+ {[%clk 01:32:44]} {[%emt
00:00:13]} Nxf6 {[%clk 01:30:53]} {[%emt 00:00:11]} 7. Bd3 {[%clk 01:33:06]}
{[%emt 00:00:08]} c5 {[%clk 01:31:06]} {[%emt 00:00:17]} 8. O-O {[%clk
01:28:28]} {[%emt 00:05:06]} cxd4 {[%clk 01:31:12]} {[%emt 00:00:25]} 9. Nxd4
{[%clk 01:28:38]} {[%emt 00:00:21]} Bc5 {[%clk 01:31:30]} {[%emt 00:00:11]} 10.
Be3 {[%clk 01:27:32]} {[%emt 00:01:36]} Bb6 {[%clk 01:25:42]} {[%emt 00:06:18]}
11. Re1 {[%clk 01:23:21]} {[%emt 00:04:41]} O-O {[%clk 01:24:33]} {[%emt
00:01:40]} 12. c3 {[%clk 00:58:18]} {[%emt 00:25:32]} e5 {[%clk 01:16:39]}
{[%emt 00:08:25]} 13. Nb3 {[%clk 00:47:41]} {[%emt 00:11:07]} Re8 {[%clk
01:13:43]} {[%emt 00:03:25]} 14. Bb5 {[%clk 00:42:15]} {[%emt 00:05:57]} Bd7
{[%clk 01:12:56]} {[%emt 00:01:16]} 15. Bxd7 {[%clk 00:37:49]} {[%emt
00:04:56]} Qxd7 {[%clk 01:12:21]} {[%emt 00:01:05]} 16. Bxb6 {[%clk 00:34:52]}
{[%emt 00:03:27]} axb6 {[%clk 01:12:39]} {[%emt 00:00:12]} 17. Qxd7 {[%clk
00:30:53]} {[%emt 00:04:30]} Nxd7 {[%clk 01:13:03]} {[%emt 00:00:05]} 18. g3
{[%clk 00:24:42]} {[%emt 00:06:40]} e4 {[%clk 00:28:07]} {[%emt 00:45:27]} 19.
Kg2 {[%clk 00:21:17]} {[%emt 00:03:55]} g6 {[%clk 00:23:33]} {[%emt 00:05:05]}
20. Rad1 {[%clk 00:20:09]} {[%emt 00:01:38]} Ne5 {[%clk 00:22:46]} {[%emt
00:01:17]} 21. Rxe4 {[%clk 00:19:15]} {[%emt 00:01:24]} Rxa2 {[%clk 00:22:44]}
{[%emt 00:00:31]} 22. Rd2 {[%clk 00:17:23]} {[%emt 00:02:21]} Re7 {[%clk
00:20:33]} {[%emt 00:02:42]} 23. Rde2 {[%clk 00:13:19]} {[%emt 00:04:34]} f6
{[%clk 00:20:44]} {[%emt 00:00:20]} 24. Nc1 {[%clk 00:12:02]} {[%emt 00:01:46]}
Ra1 {[%clk 00:19:19]} {[%emt 00:01:55]} 25. Nd3 {[%clk 00:11:49]} {[%emt
00:00:44]} Rb1 {[%clk 00:03:44]} {[%emt 00:16:05]} 26. f4 {[%clk 00:10:07]}
{[%emt 00:02:11]} Rd7 {[%clk 00:03:22]} {[%emt 00:00:53]} 27. Nxe5 {[%clk
00:03:40]} {[%emt 00:06:56]} fxe5 {[%clk 00:03:46]} {[%emt 00:00:06]} 28. fxe5
{[%clk 00:03:34]} {[%emt 00:00:36]} Re7 {[%clk 00:03:17]} {[%emt 00:00:59]} 29.
e6 {[%clk 00:02:31]} {[%emt 00:01:33]} Ra1 {[%clk 00:03:15]} {[%emt 00:00:32]}
30. Rb4 {[%clk 00:01:27]} {[%emt 00:01:34]} Ra6 {[%clk 00:03:37]} {[%emt
00:00:08]} 31. Kf3 {[%clk 00:01:42]} {[%emt 00:00:16]} Kg7 {[%clk 00:03:50]}
{[%emt 00:00:17]} 32. h4 {[%clk 00:00:36]} {[%emt 00:01:36]} Kf6 {[%clk
00:03:40]} {[%emt 00:00:39]} 33. Rf4+ {[%clk 00:00:53]} {[%emt 00:00:13]} Kg7
{[%clk 00:04:05]} {[%emt 00:00:05]} 34. Rb4 {[%clk 00:01:12]} {[%emt 00:00:12]}
Kf6 {[%clk 00:04:29]} {[%emt 00:00:05]} 35. g4 {[%clk 00:01:16]} {[%emt
00:00:27]} Rxe6 {[%clk 00:04:33]} {[%emt 00:00:26]} 36. Rxe6+ {[%clk 00:00:45]}
{[%emt 00:01:01]} Kxe6 {[%clk 00:04:56]} {[%emt 00:00:06]} 37. Kf4 {[%clk
00:00:53]} {[%emt 00:00:23]} h6 {[%clk 00:04:28]} {[%emt 00:00:58]} 38. g5
{[%clk 00:00:59]} {[%emt 00:00:23]} h5 {[%clk 00:02:45]} {[%emt 00:02:13]} 39.
Ke4 {[%clk 00:01:01]} {[%emt 00:00:28]} Kd6 {[%clk 00:02:35]} {[%emt 00:00:40]}
40. Kd4 {[%clk 00:00:56]} {[%emt 00:00:35]} Ke6 {[%clk 00:02:26]} {[%emt
00:00:38]} 41. Kc4 {[%clk 00:00:33]} {[%emt 00:01:07]} Kd6 {[%clk 00:29:52]}
{[%emt 00:03:03]} 42. Kb5 {[%clk 00:24:43]} {[%emt 00:06:21]} Kc7 {[%clk
00:28:38]} {[%emt 00:01:45]} 43. Rc4+ {[%clk 00:07:00]} {[%emt 00:18:12]} Kd7
{[%clk 00:28:21]} {[%emt 00:00:47]} 44. Rf4 {[%clk 00:04:48]} {[%emt 00:02:41]}
Ke7 {[%clk 00:18:56]} {[%emt 00:09:55]} 45. Rf2 {[%clk 00:01:18]} {[%emt
00:04:00]} Ke8 {[%clk 00:18:00]} {[%emt 00:01:26]} 46. c4 {[%clk 00:00:39]}
{[%emt 00:01:10]} Ke7 {[%clk 00:16:44]} {[%emt 00:01:46]} 47. b3 {[%clk
00:00:38]} {[%emt 00:00:30]} Ra3 {[%clk 00:16:31]} {[%emt 00:00:43]} 48. Rf3
{[%clk 00:00:57]} {[%emt 00:00:11]} Ra6 {[%clk 00:16:42]} {[%emt 00:00:19]} 49.
Rf6 {[%clk 00:01:00]} {[%emt 00:00:25]} Ra5+ {[%clk 00:16:37]} {[%emt
00:00:36]} 50. Kxb6 {[%clk 00:00:39]} {[%emt 00:00:51]} Ra6+ {[%clk 00:16:59]}
{[%emt 00:00:08]} 51. Kxb7 {[%clk 00:01:02]} {[%emt 00:00:07]} Rxf6 {[%clk
00:17:25]} {[%emt 00:00:04]} 52. gxf6 {[%clk 00:01:23]} {[%emt 00:00:09]} Kxf6
{[%clk 00:17:48]} {[%emt 00:00:07]} 53. c5 {[%emt 00:00:31]} 1-0

[Event "Kadett-SM 2025"]
[Site "Uppsala, Sweden"]
[Date "2025.07.01"]
[Round "2.4"]
[White "Berling, Egil"]
[Black "Israelsson, Lukas"]
[Result "1-0"]
[TimeControl "90 min for 40 move + 30 min with an increment of 30 sec starting move 1"]
[WhiteFideId "1781197"]
[BlackFideId "1784749"]
[WhiteElo "2004"]
[BlackElo "1823"]

1. d4 {[%clk 01:30:56]} {[%emt 00:00:04]} Nf6 {[%clk 01:30:53]} {[%emt
00:00:07]} 2. Bf4 {[%clk 01:31:21]} {[%emt 00:00:05]} c6 {[%clk 01:31:13]}
{[%emt 00:00:11]} 3. Nf3 {[%clk 01:29:02]} {[%emt 00:02:47]} Qb6 {[%clk
01:31:24]} {[%emt 00:00:21]} 4. Qc1 {[%clk 01:28:46]} {[%emt 00:00:46]} d6
{[%clk 01:31:25]} {[%emt 00:00:29]} 5. Nbd2 {[%clk 01:23:37]} {[%emt 00:05:39]}
Bg4 {[%clk 01:28:59]} {[%emt 00:02:56]} 6. h3 {[%clk 01:19:50]} {[%emt
00:04:17]} Bxf3 {[%clk 01:24:53]} {[%emt 00:04:35]} 7. Nxf3 {[%clk 01:20:02]}
{[%emt 00:00:19]} Nbd7 {[%clk 01:24:29]} {[%emt 00:00:54]} 8. e3 {[%clk
01:17:02]} {[%emt 00:03:30]} g6 {[%clk 01:22:57]} {[%emt 00:02:01]} 9. Be2
{[%clk 01:15:44]} {[%emt 00:01:49]} Bg7 {[%clk 01:22:54]} {[%emt 00:00:33]} 10.
O-O {[%clk 01:15:47]} {[%emt 00:00:26]} O-O {[%clk 01:22:57]} {[%emt 00:00:27]}
11. c3 {[%clk 01:09:11]} {[%emt 00:07:07]} Rfe8 {[%clk 01:19:55]} {[%emt
00:03:32]} 12. Qc2 {[%clk 01:08:05]} {[%emt 00:01:35]} Nd5 {[%clk 01:16:25]}
{[%emt 00:04:01]} 13. Bh2 {[%clk 01:05:57]} {[%emt 00:02:36]} f5 {[%clk
01:13:12]} {[%emt 00:03:44]} 14. a3 {[%clk 00:57:01]} {[%emt 00:09:27]} N5f6
{[%clk 01:12:02]} {[%emt 00:01:40]} 15. Nd2 {[%clk 00:51:41]} {[%emt 00:05:49]}
d5 {[%clk 01:08:05]} {[%emt 00:04:28]} 16. c4 {[%clk 00:48:14]} {[%emt
00:03:58]} Ne4 {[%clk 00:59:10]} {[%emt 00:09:24]} 17. c5 {[%clk 00:41:42]}
{[%emt 00:07:02]} Qd8 {[%clk 00:58:58]} {[%emt 00:00:42]} 18. b4 {[%clk
00:39:24]} {[%emt 00:02:48]} e5 {[%clk 00:54:32]} {[%emt 00:04:55]} 19. Nxe4
{[%clk 00:36:47]} {[%emt 00:03:08]} fxe4 {[%clk 00:54:32]} {[%emt 00:00:30]} 20.
dxe5 {[%clk 00:35:01]} {[%emt 00:02:16]} Nxe5 {[%clk 00:52:27]} {[%emt
00:02:35]} 21. Rab1 {[%clk 00:34:41]} {[%emt 00:00:49]} a6 {[%clk 00:44:57]}
{[%emt 00:08:01]} 22. Bg3 {[%clk 00:34:17]} {[%emt 00:00:53]} Qd7 {[%clk
00:34:30]} {[%emt 00:10:58]} 23. Rfd1 {[%clk 00:34:05]} {[%emt 00:00:41]} Qf5
{[%clk 00:32:25]} {[%emt 00:02:36]} 24. a4 {[%clk 00:32:52]} {[%emt 00:01:42]}
Qf8 {[%clk 00:31:10]} {[%emt 00:01:44]} 25. Bf1 {[%clk 00:28:19]} {[%emt
00:05:04]} Nd7 {[%clk 00:28:32]} {[%emt 00:03:09]} 26. Bd6 {[%clk 00:26:36]}
{[%emt 00:02:12]} Qf7 {[%clk 00:28:45]} {[%emt 00:00:16]} 27. b5 {[%clk
00:25:44]} {[%emt 00:01:24]} axb5 {[%clk 00:27:51]} {[%emt 00:01:24]} 28. axb5
{[%clk 00:26:05]} {[%emt 00:00:08]} Be5 {[%clk 00:27:20]} {[%emt 00:01:01]} 29.
bxc6 {[%clk 00:23:01]} {[%emt 00:03:34]} bxc6 {[%clk 00:27:44]} {[%emt
00:00:06]} 30. Rb7 {[%clk 00:19:32]} {[%emt 00:03:58]} Qe6 {[%clk 00:27:59]}
{[%emt 00:00:17]} 31. Bxe5 {[%clk 00:19:27]} {[%emt 00:00:34]} Nxe5 {[%clk
00:28:21]} {[%emt 00:00:08]} 32. Rdb1 {[%clk 00:18:18]} {[%emt 00:01:39]} Re7
{[%clk 00:25:38]} {[%emt 00:03:14]} 33. Rb8+ {[%clk 00:15:20]} {[%emt
00:03:27]} Rxb8 {[%clk 00:24:19]} {[%emt 00:01:50]} 34. Rxb8+ {[%clk 00:15:42]}
{[%emt 00:00:08]} Kg7 {[%clk 00:24:32]} {[%emt 00:00:16]} 35. Ra8 {[%clk
00:14:28]} {[%emt 00:01:45]} Qf6 {[%clk 00:24:33]} {[%emt 00:00:29]} 36. Qb3
{[%clk 00:13:09]} {[%emt 00:01:49]} Rf7 {[%clk 00:24:41]} {[%emt 00:00:22]} 37.
Ra2 {[%clk 00:11:56]} {[%emt 00:01:39]} Nd7 {[%clk 00:23:37]} {[%emt 00:01:37]}
38. Qb4 {[%clk 00:11:03]} {[%emt 00:01:24]} Qe7 {[%clk 00:22:38]} {[%emt
00:01:29]} 39. Qd4+ {[%clk 00:10:36]} {[%emt 00:00:54]} Qf6 {[%clk 00:22:35]}
{[%emt 00:00:35]} 40. Ra7 {[%clk 00:06:17]} {[%emt 00:04:49]} Ne5 {[%emt
00:01:26]} 41. Rxf7+ {[%clk 00:04:35]} {[%emt 00:02:10]} Nxf7 {[%clk 00:21:57]}
{[%emt 00:00:13]} 42. Ba6 {[%clk 00:21:50]} {[%emt 00:13:16]} Qxd4 {[%clk
00:51:16]} {[%emt 00:01:11]} 43. exd4 {[%clk 00:22:16]} {[%emt 00:00:04]} Kf6
{[%clk 00:51:31]} {[%emt 00:00:15]} 44. Kf1 {[%clk 00:21:57]} {[%emt 00:00:47]}
h5 {[%clk 00:50:33]} {[%emt 00:01:30]} 45. Ke2 {[%clk 00:21:27]} {[%emt
00:01:00]} Nd8 {[%clk 00:49:57]} {[%emt 00:01:05]} 46. Bc8 {[%clk 00:17:22]}
{[%emt 00:04:35]} Kg5 {[%clk 00:43:15]} {[%emt 00:07:13]} 47. Ke3 {[%clk
00:16:11]} {[%emt 00:01:41]} Kh4 {[%clk 00:36:49]} {[%emt 00:06:56]} 48. Kf4
{[%clk 00:11:48]} {[%emt 00:04:46]} g5+ {[%clk 00:36:52]} {[%emt 00:00:35]} 49.
Ke3 {[%clk 00:11:17]} {[%emt 00:01:00]} g4 {[%clk 00:36:18]} {[%emt 00:01:04]}
50. hxg4 {[%clk 00:11:38]} {[%emt 00:00:10]} hxg4 {[%clk 00:35:57]} {[%emt
00:00:50]} 51. Kf4 {[%clk 00:11:23]} {[%emt 00:00:42]} g3 {[%clk 00:35:39]}
{[%emt 00:00:51]} 52. Bg4 {[%clk 00:09:57]} {[%emt 00:01:56]} Ne6+ {[%clk
00:35:42]} {[%emt 00:00:27]} 53. Bxe6 {[%clk 00:10:23]} {[%emt 00:00:04]} gxf2
{[%clk 00:36:04]} {[%emt 00:00:09]} 54. g3 {[%clk 00:10:50]} {[%emt 00:00:03]}
1-0

[ePGN "0.1;DGT LiveChess/2.2.7"]